Cogmind - Beta 16.1 @@@ ROGUE MODE // 2026.04.07 @ 01:59:47 Player: Maelyn Result: Destroyed by DN-7W8(j) with Overtuned Pulse Rifle Performance ------------- Evolutions (0) 0 Regions Visited (3) 600 Robots Destroyed (4) 20 Value Destroyed (179) 179 Prototype IDs (0) 0 Alien Tech Used (0) 0 Bonus (0) 0 TOTAL SCORE: 799 Bonus ------- None Cogmind --------- Core Integrity 0/250 Matter 240/300 Energy 117/125 System Corruption 2% Temperature Warm (132) Movement Walking (120) Location -9/Scraptown Parts ------- > --- POWER (1) -------- Light Ion Engine > --- PROPULSION (2) --- Aluminum Leg Aluminum Leg > --- UTILITY (2) ------ Medium Storage Unit > --- WEAPON (2) ------- Medium Laser Battle Rifle > --- INVENTORY (10) --- Light Treads Light Treads Improved Treads Subdweller Monowheel Targeting Computer Small Laser Assault Rifle Light Assault Rifle Power Maul Peak State ------------ > --- POWER ------------ Ion Engine > --- PROPULSION ------- Aluminum Leg Aluminum Leg > --- UTILITY ---------- Small Storage Unit Medium Storage Unit > --- WEAPON ----------- Battle Rifle Power Maul > --- INVENTORY -------- Light Ion Engine Light Treads Light Treads Improved Treads Subdweller Monowheel Medium Laser Assault Rifle Light Assault Rifle [Rating: 12] Favorites ----------- Power Ion Engine Engine Ion Engine Propulsion Aluminum Leg Leg Aluminum Leg Wheel Subdweller Monowheel Utility Small Storage Unit Storage Small Storage Unit Weapon Assault Rifle Energy Gun Medium Laser Ballistic Gun Assault Rifle Impact Weapon Power Maul Build | -11 -10 -10 -9 ------- Run | Yrd Mat Sub Scr Slots Evolved . | . . . . Power . | . . . . Propulsion . | . . . . Utility . | . . . . Weapon . | . . . . Parts Attached 11 | 6 . 1 4 Power 2 | 1 . . 1 Engine 2 | 1 . . 1 Core . | . . . . Reactor . | . . . . Propulsion 3 | 2 . . 1 Treads . | . . . . Leg 2 | 2 . . . Wheel 1 | . . . 1 Hover . | . . . . Flight . | . . . . Utility 2 | 1 . . 1 Device . | . . . . Storage 2 | 1 . . 1 Processor . | . . . . Hackware . | . . . . Protection . | . . . . Artifact . | . . . . Weapon 4 | 2 . 1 1 Energy Gun 1 | 1 . . . Energy Cannon . | . . . . Ballistic Gun 2 | 1 . 1 . Ballistic Cannon . | . . . . Launcher . | . . . . Special Weapon . | . . . . Impact Weapon 1 | . . . 1 Slashing Weapon . | . . . . Piercing Weapon . | . . . . Special Melee Weapon . | . . . . Unidentified Prototypes . | . . . . Parts Lost 1 | . . . 1 Power 1 | . . . 1 Propulsion . | . . . . Utility . | . . . . Weapon . | . . . . Highest Loss Streak 1 | . . . 1 To Critical Strikes . | . . . . Average Backups 6 | 4 4 5 7 Power . | . 1 1 . Propulsion 3 | 2 2 2 3 Utility . | . . . . Weapon 1 | 1 1 1 2 Tool/Special . | . . . . Unused Backups 7 | . . 1 6 Power . | . . . . Propulsion 4 | . . 1 3 Utility 1 | . . . 1 Weapon 2 | . . . 2 Tool/Special . | . . . . Average Slot Usage (%) 84 | . 85 85 84 Engine 13 | . 14 14 13 Leg 23 | . 28 28 20 Wheel 4 | . . . 7 Storage 14 | . 14 14 14 Energy Gun 5 | . 14 12 . Ballistic Gun 19 | . 14 15 22 Impact Weapon 3 | . . . 5 Peak Build Rating 12 | 6 6 8 12 Average Rating 7 | 3 6 7 9 On Entrance 5 | . 6 6 8 Avg Prop Armor Cover (%) 8 | . . . 8 Naked Turns . | . . . . Heaviest Build 20 | 14 14 14 20 Greatest Support 20 | 20 20 20 20 Greatest Overweight (x) 2 | 2 . . . Average Overweight (x) . | . . . . Largest Inventory Capacity 10 | 8 8 8 10 Average Capacity 8 | 7 8 8 8 Most Carried 10 | 8 4 8 10 Average Carried 7 | 4 4 6 7 Final Capacity 10 | 8 8 8 10 Final Carried 9 | 4 4 8 9 Class Distribution -------------------- 100% | Mutant Dominant Class ---------------- Mutant | -10/Materials Mutant | -10/Subcaves Mutant | -9/Scraptown Resources | -11 -10 -10 -9 ----------- Run | Yrd Mat Sub Scr Matter Collected 331 | 192 . 68 71 Remotely . | . . . . Salvage Created 242 | . . . 242 Parts 16 | . . . 16 Haulers Intercepted . | . . . . Recyclers Shooed . | . . . . Parts Field Recycled . | . . . . Retrieved Matter . | . . . . Parts Self-Destructed . | . . . . Prevented . | . . . . Parts Restored . | . . . . Kills | -11 -10 -10 -9 ------- Run | Yrd Mat Sub Scr Combat Hostiles Destroyed 4 | . . . 4 Guns 4 | . . . 4 Classes Destroyed 2 | . . . 2 Federalist 1 | . . . 1 Scrapper 3 | . . . 3 Best Kill Streak 3 | . . . 3 Combat Bots Only 3 | . . . 3 Max Kills in Single Turn 1 | . . . 1 Gunslinging . | . . . . Exploded . | . . . . Melee . | . . . . Uniques/NPCs Destroyed . | . . . . Combat | -11 -10 -10 -9 -------- Run | Yrd Mat Sub Scr Hostile Shots Fired 41 | . . 1 40 Missed 8 | . . . 8 Hits 33 | . . 1 32 Projectile 33 | . . 1 32 Critical Strikes 2 | . . . 2 Damage Taken 635 | . . 18 617 Core 258 | . . 18 240 Absorbed by Shields . | . . . . Core Remaining (%) 100 | 100 . . . Volleys Fired 20 | . . . 20 Largest 2 | . . . 2 Hottest 75 | . . . 75 Shots Fired 24 | . . . 24 Gun 24 | . . . 24 Cannon . | . . . . Launcher . | . . . . Special . | . . . . Kinetic 22 | . . . 22 Thermal 2 | . . . 2 Explosive . | . . . . Electromagnetic . | . . . . Robot Hit Streak 13 | . . . 13 Robot Miss Streak 2 | . . . 2 Penetration Max . | . . . . Secondary Targets . | . . . . Shots Hit Robots 18 | . . . 18 Core Hits 10 | . . . 10 Critical Kills . | . . . . Critical Parts Destroyed . | . . . . Critical Strikes . | . . . . Melee Attacks . | . . . . Impact . | . . . . Slashing . | . . . . Piercing . | . . . . Sneak Attacks . | . . . . Combat Hostiles . | . . . . Follow-up Attacks . | . . . . Damage Inflicted 270 | . . . 270 Guns 270 | . . . 270 Cannons . | . . . . Explosions . | . . . . Melee . | . . . . Ramming . | . . . . Kinetic 244 | . . . 244 Thermal 26 | . . . 26 Explosive . | . . . . Electromagnetic . | . . . . Impact . | . . . . Slashing . | . . . . Piercing . | . . . . Highest Corruption 2 | . 2 2 2 Average Corruption 2 | . 2 2 2 Corruption Purged . | . . . . Corruption Blocked . | . . . . Effects 6 | . . 2 4 Message Errors 1 | . . 1 . Heat Flow Errors 1 | . . 1 . Energy Discharges 1 | . . . 1 Misfires 2 | . . . 2 Alerts 1 | . . . 1 Overload Shots . | . . . . Overflow Damage . | . . . . Projectiles . | . . . . Explosions . | . . . . Melee . | . . . . Knockbacks . | . . . . Impact . | . . . . Kinetic . | . . . . Secondary . | . . . . Self-Inflicted Damage . | . . . . Shots . | . . . . Rammed . | . . . . Targets Rammed . | . . . . Kicked . | . . . . Crushed . | . . . . Highest Temperature 143 | . . 137 143 Average Temperature 65 | . . 78 64 Received Heat Transfer 392 | . . 6 386 Siege Activations . | . . . . Martial Activations . | . . . . Shielding Activations . | . . . . Robots Disrupted . | . . . . Combat Hostiles . | . . . . Robots Corrupted . | . . . . Combat Hostiles . | . . . . Parts Fried . | . . . . Impact Corruptions . | . . . . Robots Melted . | . . . . Combat Hostiles . | . . . . Parts Melted 3 | . . . 3 Heat Transferred 50 | . . . 50 Parts Sabotaged . | . . . . Parts Stolen . | . . . . Parts Stripped . | . . . . Power Chain Reactions . | . . . . Alert | -11 -10 -10 -9 ------- Run | Yrd Mat Sub Scr Maximum Alert Level . | . . . . Low Security (%) 100 | 100 100 . . Level 1 . | . . . . Level 2 . | . . . . Level 3 . | . . . . Level 4 . | . . . . Level 5 . | . . . . High Security . | . . . . Max Security . | . . . . Peak Influence . | . . . . Initial . | . . . . Average . | . . . . Influence Increases . | . . . . Influence Decreases . | . . . . Squads Dispatched . | . . . . Investigation . | . . . . Extermination . | . . . . Reinforcement . | . . . . Assault . | . . . . Garrison . | . . . . Intercept . | . . . . Searches Triggered . | . . . . Construction Impeded . | . . . . Haulers Reinforced . | . . . . Active Scanning Responses . | . . . . Cargo Convoy Interrupts . | . . . . Stealth | -11 -10 -10 -9 --------- Run | Yrd Mat Sub Scr Distress Signals . | . . . . Communications Jammed . | . . . . Distress Signals . | . . . . Times Spotted 10 | . . 1 9 Peak Tracking Total 6 | . . 1 6 Tactical Retreats . | . . . . Traps | -11 -10 -10 -9 ------- Run | Yrd Mat Sub Scr Traps Triggered 1 | . 1 . . Indirectly . | . . . . Trap Hack Attempts . | . . . . Triggered . | . . . . Disarmed . | . . . . Reprogrammed . | . . . . Reused . | . . . . Traps Extracted . | . . . . Installed . | . . . . Triggered . | . . . . Machines | -11 -10 -10 -9 ---------- Run | Yrd Mat Sub Scr Machines Disabled 1 | . . . 1 Max in Single Turn 1 | . . . 1 Machines Repaired . | . . . . Machines Dismantled . | . . . . Machines Sabotaged . | . . . . Overloaded Fab Kills . | . . . . Hacking | -11 -10 -10 -9 --------- Run | Yrd Mat Sub Scr Machines Accessed . | . . . . Terminals . | . . . . Fabricators . | . . . . Repair Stations . | . . . . Recycling Units . | . . . . Scanalyzers . | . . . . Garrison Access . | . . . . Total Hacks . | . . . . Successful . | . . . . Failed . | . . . . Catastrophic . | . . . . Database Lockouts . | . . . . Manual . | . . . . Terminals . | . . . . Fabricators . | . . . . Repair Stations . | . . . . Recycling Units . | . . . . Scanalyzers . | . . . . Garrison Access . | . . . . Terminal Hacks . | . . . . Fabricator Hacks . | . . . . Repair Station Hacks . | . . . . Recycling Unit Hacks . | . . . . Scanalyzer . | . . . . Garrison Access Hacks . | . . . . Unauthorized Hacks . | . . . . Terminals . | . . . . Fabricators . | . . . . Repair Stations . | . . . . Recycling Units . | . . . . Scanalyzers . | . . . . Garrison Access . | . . . . Data Cores Recovered . | . . . . Used . | . . . . Hacking Detections . | . . . . Full Trace Events . | . . . . Feedback Events . | . . . . Feedback Blocked . | . . . . Robot Schematics Acquired . | . . . . Robots Built . | . . . . Authchips . | . . . . Time . | . . . . Total Robot Build Rating . | . . . . Part Schematics Acquired . | . . . . Parts Built . | . . . . Authchips . | . . . . Time . | . . . . Total Part Build Rating . | . . . . Part Studies Acquired . | . . . . Parts Repaired . | . . . . Time . | . . . . Parts Recycled . | . . . . Recycled Matter . | . . . . Retrieved Matter . | . . . . Retrieved Components . | . . . . Parts Scanalyzed . | . . . . Part Schematics Acquired . | . . . . Parts Damaged . | . . . . Bothacking | -11 -10 -10 -9 ------------ Run | Yrd Mat Sub Scr Used RIF Installer . | . . . . Robots Hacked . | . . . . Non-combat . | . . . . Combat . | . . . . Robot Hacks Applied . | . . . . Relay Couplers Released . | . . . . Fabnet Peak Effective % . | . . . . Robots Rewired . | . . . . Allies Hacked . | . . . . Hacks Repelled . | . . . . Allies | -11 -10 -10 -9 -------- Run | Yrd Mat Sub Scr Total Allies . | . . . . Largest Group . | . . . . Highest-Rated Group . | . . . . Highest-Rated Ally . | . . . . Total Orders . | . . . . Ally Attacks . | . . . . Total Damage . | . . . . Kills . | . . . . Allies Corrupted . | . . . . Allies Melted . | . . . . Intel | -11 -10 -10 -9 ------- Run | Yrd Mat Sub Scr Active Infowar (turns) . | . . . . Robot Analysis Total . | . . . . Derelict Logs Recovered 1 | . . 1 . Drone Launches . | . . . . Drone Recoveries . | . . . . Exploration | -11 -10 -10 -9 ------------- Run | Yrd Mat Sub Scr Turns Passed 753 | 67 50 230 406 Spaces Moved 592 | 52 42 188 310 Core 28 | 28 . . . Treads . | . . . . Legs 375 | 24 42 188 121 Wheels 189 | . . . 189 Hover . | . . . . Flight . | . . . . Fastest Speed 50 | 50 120 120 110 Average Speed 115 | 101 120 120 113 Slowest Speed 150 | 150 120 120 120 Overloaded Moves . | . . . . Propulsion Burnouts . | . . . . Robots Hopped . | . . . . Potential Cave-ins . | . . . . Cave-ins Triggered . | . . . . Exploration Rate (%) 12 | 3 13 13 21 Regions Visited 3 Branch Regions 2 Pre-discovered Areas 1 | . . 1 . Known Exits Taken . | . . . . Unknown Exits Taken 3 | 1 1 1 . Scrap Searched 3 | . . . 3 Spaces Dug . | . . . . Terrain Destroyed . | . . . . Melee . | . . . . Projectile . | . . . . AOE . | . . . . Terrain Rammed . | . . . . Walls Destroyed . | . . . . Machines Disabled . | . . . . Actions | -11 -10 -10 -9 --------- Run | Yrd Mat Sub Scr Total 643 | 65 41 194 343 Wait . | . . . . Move 589 | 51 41 187 310 Hop . | . . . . Pick Up 17 | 8 . 5 4 Fast Attach 3 | 2 . . 1 Attach 5 | 4 . . 1 Detach . | . . . . Swap 5 | . . 1 4 Drop 4 | . . 1 3 Fire 20 | . . . 20 Melee . | . . . . Ram . | . . . . Kick . | . . . . Crush . | . . . . Escape Stasis . | . . . . Rewire . | . . . . Trap . | . . . . Miscellaneous . | . . . . Route ------- -11/Scrapyard -10/Materials -10/Subcaves -9/Scraptown History --------- Turn | Location | Event 5 | -11/Scrapyard | Discovered new exit (range 14) 68 | -11/Scrapyard | Entered Materials 69 | -10/Materials | Met a group of wandering Federalists 115 | -10/Materials | Discovered new exit (range 3) 118 | -10/Materials | Entered Subcaves 118 | -10/Subcaves | Accompanied by 2 allies 119 | -10/Subcaves | Continued accompanying wandering Federalists (3) 119 | -10/Subcaves | Approached by a straggling Scientist 307 | -10/Subcaves | Shifting Twisted Machinery released Battle Rifle 308 | -10/Subcaves | Shifting Twisted Machinery released Sub. Monowheel 316 | -10/Subcaves | Build established: Mutant 338 | -10/Subcaves | Wandering Federalist uncovered a shortcut to Scraptown 338 | -10/Subcaves | Learned location of Zion (-6) 348 | -10/Subcaves | Entered Scraptown 587 | -9/Scraptown | Attacked by Scraptown defenders 738 | -9/Scraptown | Core integrity fell below 50% 748 | -9/Scraptown | Core integrity fell below 20% 754 | -9/Scraptown | Destroyed by DN-7W8(j) with Overtuned Pulse Rifle Last Messages --------------- 00677_ Acquired Targeting Computer. 00693_ ANNOUNCEMENT: Triborg tracking relay activated. Stay clear or you only have yourself to blame! 00699_ System corrupted: FCS attempts to trigger Battle Rifle. 00699_ System corrupted: Battle Rifle misfires. 00728_ A4-5DD(j) destroyed. 00729_ Critical hit (Burn: +50). 00731_ R8-J8B(j): "If it isn't public enemy #1: the new Wanderer!" 00736_ Mak. Microdissipator Network melted. 00736_ Lgt. Deuterium Engine melted. 00736_ H0-2MR(j) destroyed. 00738_ Ion Engine destroyed. 00738_ Critical hit (Burn: +50). 00740_ Lgt. Deuterium Engine melted. 00740_ QM-VK2(j) destroyed. 00746_ DN-7W8(j) heat spikes uncontrollably. 00748_ Machine disabled. Map ----- +----------------------------------------------------+ | ?????????????????????????????????????? | | ?????????????????????????????????????? | | ?????????????????????????????????????? | | ?????????????????????????????????????? | | ?????????????????????????????????????? | | ?????????????????????????????????????? | | ?????????????????????????????????????? | | ???????????? ???????????????????????? | | ???????????? ???????????????????????? | | ???????????" ???????????????????????? | | ???????????" "??????????????????????? | | ???????? ?" "??????????????????????? | | ??????"" " #??????????????????????? | | ?????? " ########???????????????? | | ??????"" " #"""X""#???????????????? | | ????? "" " #" "#???????????????? | | ?????? #" "#???????????????? | | ??????? " #" "#?????????####### | | ???????? " #" "#????????## | | ?????????"""j #" "#????????# | | ???????????#! #"" """########### | | ???????????#![= TTp ### | | ??????######!=! TT #?? | | ??"" """""" [%# "j"""##"" """### #?? | | ??" " " ""=!;" "##"" "#?# #?? | | ?#" " " ""%@#"" "##"" "#?# #?? | | ?#" " ""= #"" "##"" "#?# #?? | | ?#" "" #"" " "##"$ "#?# #?? | | ?#" j #"""" "##" "#?# #?? | | ?#"" " #""""""##""""""#?# #?? | | ?#""" "" ################?# #?? | | ??"" "" #######??#####???# #?? | | ??""" "" """""""#?#"""#???# #?? | | ??"""""" """ " "#?#" "#???# #?? | | ???##### ### " """ "#?# #???# #?? | | ?????? ??# " """ "#?# ##### #?? | | ???# ####### " """ "??# ##? | | ??"" """"""" " """ "??# #? | | ?#" " " """ "??# ##? | | ??" """"" " " """ "??##### ### ##?? | | ?????"""" " " """ "#?????# #?###??? | | ?????""""" """ "####### ######?? | | ?????""""" " " """ "##""""" """""#?? | | ??" """"" " " "##"""%" " "#?? | | ?#" " """""""##"& & "#?? | | ??"""""""""" #########""""" """""#?? | | ?????####### ##??????###### ######?? | | ??????????# ############# ######## | | ??????????# | | ??????????# | +----------------------------------------------------+ Best States ------------- Heat Dissipation 25 Energy Generation 10 Energy Capacity 250 Matter Stores 300 Matter Capacity 300 Sight Range 16 Terrain Scan Density 10 Evasion (%) 55 Item Schematics ----------------- None Robot Schematics ------------------ None Fabricated ------------ Nothing Repaired ---------- Nothing Studied --------- None Alien Tech Used ----------------- None Achievements -------------- Civilization 2243 Strength In Numbers Challenges ------------ None Game ------ Seed HellfireMassDevice Manual? 0 Play Time 00:08:49 Cumulative 15.3 hours Start 2026.04.07 @ 01:51:48 End 2026.04.07 @ 01:59:47 Sessions 1 Manual Loads 0 Difficulty Rogue Special Mode None Game No. 42 Rogue 42 Adventurer 0 Explorer 0 Win Type - Total 0 Types 0/0/0/0/0/0/0/0/0/0 Lore% 7 Gallery% 18 Achievement% 10 Wizard Run 0 Options --------- Layout 2 ASCII 0 Keyboard 0 Movement Mouse Keybinds 0 Fullscreen 1 Font 24/Crisp Map View 50x44 Zoom Use 0% Tactical HUD 1 Map Filters NONE Filters NONE Steam 1 RUN: 8f2cacc0-a1af-419f-aee0-6c33ff7dfccb